bitfinex-derivatives/quotes_SOLF0:USTF0_20251219
["timestamp","ask_amount","ask_price","bid_price","bid_amount"]
[1766140498306,7.2271,124.6,124.55,3.27]
[1766140499009,10.6071,124.6,124.55,3.27]
[1766140501419,0.05377182,124.61,124.55,3.27]
[1766140502727,0.05377182,124.61,124.56,3.27]
[1766140505615,0.05377182,124.61,124.57,3.42]
[1766140519435,0.00377182,124.61,124.57,10.6486]
[1766140519640,6.99066621,124.65,124.58,3.2]
[1766140520532,10.5047,124.64,124.58,3.2]
[1766140520732,0.05740848,124.63,124.6,0.05713328]
[1766140539345,3.30740848,124.63,124.6,0.05713328]
[1766140567272,8.93368308,124.63,124.6,0.05713328]
[1766140568882,3.30740848,124.63,124.6,0.05713328]
[1766140584696,3.30740848,124.63,124.59,7.52637277]
[1766140585691,10.53270848,124.63,124.59,7.52637277]
[1766140592509,3.30740848,124.63,124.59,7.52637277]
[1766140594500,3.30740848,124.63,124.59,10.95637277]
[1766140594694,9.10510818,124.66,124.61,10.95637277]
[1766140594894,3.44,124.66,124.61,10.95637277]
[1766140595193,9.10510818,124.66,124.61,10.95637277]
[1766140595386,5.66510818,124.67,124.62,3.43]
[1766140595586,0.05537768,124.66,124.63,0.06070599]
[1766140597999,3.49537768,124.66,124.63,0.06070599]
[1766140599606,10.71897768,124.66,124.63,0.06070599]
[1766140600997,3.49537768,124.66,124.63,0.06070599]
[1766140615621,3.44,124.65,124.63,0.06070599]
[1766140615918,3.44,124.65,124.63,0.00070599]
[1766140619124,0.05537768,124.66,124.63,0.00070599]
[1766140620018,3.49537768,124.66,124.63,0.00070599]
[1766140630232,10.71897768,124.66,124.63,0.00070599]
[1766140632136,3.25,124.65,124.63,0.00070599]
[1766140645055,3.25,124.65,124.57,117.78716875]
[1766140645552,3.25,124.65,124.6,7.227]
[1766140646152,0.05531935,124.64,124.6,7.227]
[1766140649455,3.39531935,124.64,124.58,7.2277]
[1766140649856,3.39531935,124.64,124.57,2.87]
[1766140650965,3.34,124.63,124.57,10.0988]
[1766140651157,0.0530055,124.61,124.57,10.0988]
[1766140656158,3.3530055,124.61,124.55,10.3898]
[1766140656365,0.05948357,124.59,124.55,10.3898]
[1766140656563,3.3,124.63,124.56,3.16]
[1766140657267,3.3,124.63,124.59,3.19]
[1766140657669,0.05189499,124.62,124.6,0.05224511]
[1766140659775,3.35189499,124.62,124.6,0.00224511]
[1766140664876,0.05189499,124.62,124.6,0.00224511]
[1766140665275,0.05189499,124.62,124.6,3.43224511]
[1766140666278,3.3,124.64,124.6,3.43224511]
[1766140666978,7.2233,124.67,124.6,3.43224511]
[1766140666979,3.3,124.66,124.6,3.43224511]
[1766140667281,0.05188895,124.64,124.6,3.43224511]
[1766140669879,3.3,124.68,124.6,3.43224511]
[1766140670181,3.3,124.68,124.6,3.43]
[1766140670880,0.05243188,124.65,124.63,0.05911179]
[1766140687798,3.85243188,124.65,124.59,10.9272]
[1766140688095,3.8,124.65,124.59,10.9272]
[1766140688996,0.05388238,124.63,124.61,0.05359539]
[1766140697792,3.99,124.66,124.61,4.13359539]
[1766140698895,0.05499885,124.65,124.61,4.13359539]
[1766140699805,0.05499885,124.65,124.61,11.35999539]
[1766140703409,4.04499885,124.65,124.61,0.05359539]
[1766140717312,4.05,124.64,124.58,7.50356143]
[1766140717518,4.05,124.64,124.57,11.54356143]
[1766140718315,0.06154376,124.62,124.59,0.05843534]
[1766140728619,4.11154376,124.62,124.59,0.05843534]
[1766140739237,0.06154376,124.62,124.59,11.32593534]
[1766140739630,4.05,124.64,124.59,10.63154578]
[1766140740538,0.05332111,124.63,124.6,7.2269]
[1766140741436,0.05332111,124.63,124.6,11.2669]
[1766140744543,0.05332111,124.63,124.6,7.2269]
[1766140744738,0.05332111,124.63,124.59,0.05843534]
[1766140745042,4.48332111,124.63,124.59,0.05843534]
[1766140745837,4.48332111,124.63,124.59,7.28603534]
[1766140746747,4.48332111,124.63,124.59,0.05843534]
[1766140758150,112.4159,124.61,124.51,4.44]
[1766140758347,6.53311044,124.61,124.52,4.44]
[1766140758549,6.53311044,124.59,124.52,4.44]
[1766140758949,6.53311044,124.6,124.52,4.44]
[1766140759151,0.05838558,124.57,124.55,0.05390639]
[1766140759944,6.53311044,124.61,124.55,0.05390639]
[1766140760142,47.24,124.62,124.55,0.05390639]
[1766140760347,6.53311044,124.61,124.54,4.44]
[1766140760847,112.3578,124.68,124.51,112.4993]
[1766140760848,53.77311044,124.64,124.55,10.97311044]
[1766140761054,0.05538674,124.61,124.58,0.05380135]
[1766140767860,0.05538674,124.61,124.58,0.00380135]
[1766140768557,7.28198674,124.61,124.58,0.00380135]
[1766140774452,0.05538674,124.61,124.58,0.00380135]
[1766140779061,0.05538674,124.61,124.54,10.4802]
[1766140779672,0.05538674,124.61,124.55,3.25]
[1766140780062,0.05538674,124.61,124.57,3.30610982]
[1766140780368,0.05538674,124.61,124.58,7.228]
[1766140780566,0.05538674,124.61,124.58,10.478]
[1766140804685,17.43632109,124.65,124.59,3.37]
[1766140805681,0.05339887,124.63,124.59,3.37]
[1766140805883,0.05339887,124.63,124.61,0.05513676]
[1766140807583,0.05339887,124.63,124.59,3.37]
[1766140808386,0.05339887,124.63,124.6,0.05545287]
[1766140840106,7.27869887,124.63,124.6,0.05545287]
[1766140853027,6.53426025,124.62,124.56,3.26]
[1766140853222,112.3987,124.63,124.56,3.26]
[1766140853528,53.79426025,124.62,124.56,3.26]
[1766140854022,0.05185638,124.6,124.56,3.26]
[1766140859331,47.26,124.62,124.57,3.26]
[1766140860436,0.05835248,124.61,124.58,3.31933979]
[1766140861033,7.2258,124.63,124.58,3.31933979]
[1766140862034,0.06057403,124.62,124.58,3.31933979]
[1766140863437,7.2234,124.67,124.59,3.26]
[1766140863624,112.3128,124.73,124.61,3.26]
[1766140863830,112.2795,124.76,124.67,3.26]
[1766140864137,53.79426025,124.75,124.69,3.41]
[1766140864533,0.06136886,124.73,124.71,0.06061542]
[1766140869546,0.00136886,124.73,124.71,3.47061542]
[1766140870143,8.61117681,124.8,124.71,3.47061542]
[1766140870339,6.53426025,124.79,124.71,3.41]
[1766140870542,53.77426025,124.79,124.72,9.94426025]
[1766140870742,47.24,124.79,124.72,9.94426025]
[1766140871345,0.05816145,124.77,124.74,0.05432087]
[1766140875944,0.05816145,124.77,124.74,0.00432087]
[1766140876747,0.05816145,124.77,124.72,3.41]
[1766140877747,0.05816145,124.77,124.73,0.058496]
[1766140879548,0.05816145,124.77,124.7,7.2211]
[1766140879755,7.27566145,124.77,124.69,9.94852298]
[1766140879945,7.2175,124.77,124.69,9.94852298]
[1766140880649,0.05653956,124.74,124.72,0.05852217]
[1766140884956,0.05653956,124.74,124.67,7.2225]
[1766140884957,0.05653956,124.74,124.67,3.43]
[1766140885254,47.27653956,124.74,124.67,3.43]
[1766140885649,47.27653956,124.74,124.68,6.51852298]
[1766140885850,47.27653956,124.74,124.69,3.43]
[1766140886051,47.27653956,124.74,124.7,0.05905991]
[1766140886559,54.49553956,124.74,124.7,0.05905991]
[1766140887545,7.27553956,124.74,124.7,0.05905991]
[1766140891752,54.49553956,124.74,124.7,3.48905991]
[1766140892059,47.27653956,124.74,124.7,3.48905991]
[1766140895852,0.05653956,124.74,124.7,3.48905991]
[1766140896056,47.27653956,124.74,124.7,3.48905991]
[1766140900868,54.49553956,124.74,124.7,3.48905991]
[1766140903270,112.2385,124.81,124.71,3.19]
[1766140903466,47.22,124.8,124.71,3.19]
[1766140904263,0.05879043,124.77,124.74,0.05216124]
[1766140904864,47.22,124.76,124.7,3.19]
[1766140905861,47.22,124.76,124.72,0.05681706]
[1766140905862,0.05897544,124.74,124.72,0.05681706]
[1766140906663,7.27797544,124.74,124.72,0.05681706]
[1766140911282,0.05897544,124.74,124.72,0.05681706]
[1766140918282,47.22,124.78,124.73,3.19]
[1766140919084,0.06125299,124.77,124.73,3.19]
[1766140921985,10.4353,124.81,124.74,0.63]
[1766140922386,3.22,124.8,124.74,0.63]
[1766140923080,0.06059253,124.78,124.76,0.0526317]
[1766140923585,0.00059253,124.78,124.76,0.6226317]
[1766140924090,3.22,124.82,124.76,0.6226317]
[1766140925289,0.05338065,124.8,124.76,0.6226317]
[1766140934692,3.57338065,124.8,124.76,0.0026317]
[1766140934899,3.52,124.79,124.72,0.62]
[1766140935085,3.52,124.78,124.72,0.62]
[1766140935891,0.06047518,124.76,124.74,0.0522683]
[1766140946113,10.6554,124.81,124.75,0.56]
[1766140946405,3.44,124.81,124.75,0.56]
[1766140947297,0.05177262,124.79,124.77,0.05733387]
[1766140949998,0.05177262,124.79,124.72,14.66535962]
[1766140949999,9.95568875,124.78,124.71,0.62]
[1766140950205,3.44,124.77,124.71,0.62]
[1766140950907,0.05213767,124.75,124.73,0.05747201]
[1766140953726,3.49213767,124.75,124.69,0.68]
[1766140954431,3.49213767,124.75,124.7,0.68]
[1766140954631,3.49213767,124.75,124.71,0.05946429]
[1766140963331,3.52,124.74,124.68,8.12575962]
[1766140963523,3.52,124.73,124.67,14.66835962]
[1766140963919,3.52,124.73,124.67,7.44575962]
[1766140964136,3.52,124.73,124.66,14.70144837]
[1766140964318,3.52,124.73,124.68,0.05994772]
[1766140964523,0.06005543,124.71,124.68,0.05994772]
[1766140971931,0.06005543,124.71,124.68,0.79994772]
[1766140972235,5.543e-05,124.71,124.68,7.31563647]
[1766140973736,5.543e-05,124.71,124.68,14.53793647]
[1766140973938,5.543e-05,124.71,124.68,0.73994772]
[1766140975532,5.543e-05,124.71,124.69,7.2218]
[1766140976339,10.7379,124.76,124.7,7.9012]
[1766140976540,10.7379,124.76,124.71,0.68]
[1766140976739,3.52,124.76,124.71,0.68]
[1766140977639,0.05685223,124.75,124.72,0.05875232]
[1766140980236,3.57685223,124.75,124.72,0.05875232]
[1766140982147,3.52,124.74,124.69,0.68]
[1766140982537,3.52,124.74,124.68,7.2219]
[1766140982937,3.52,124.73,124.68,7.2219]
[1766140983143,0.0563423,124.72,124.69,0.05236806]
[1766140983540,3.5763423,124.72,124.69,0.00236806]
[1766140987646,3.45,124.71,124.69,0.00236806]
[1766140987839,3.45,124.71,124.65,0.74]
[1766140988839,3.45,124.71,124.67,0.04573037]
[1766140989043,0.05860172,124.69,124.67,0.04573037]
[1766140996660,3.50860172,124.69,124.65,0.74]
[1766141003276,3.50860172,124.69,124.64,21.18614837]
[1766141003778,3.50860172,124.69,124.63,55.63575962]
[1766141003977,3.50860172,124.69,124.63,48.19]
[1766141004179,3.50860172,124.69,124.62,14.67105962]
[1766141004382,3.50860172,124.69,124.62,21.18674837]
[1766141005673,3.2,124.68,124.62,21.18674837]
[1766141005978,0.05648271,124.66,124.62,21.18674837]
[1766141007181,0.05648271,124.66,124.62,22.01674837]
[1766141008969,3.25648271,124.66,124.62,7.34568875]
[1766141010381,3.25648271,124.66,124.59,8.27575962]
[1766141010575,3.25648271,124.66,124.59,7.34568875]
[1766141011479,3.2,124.65,124.59,8.0576]
[1766141011784,0.06105627,124.63,124.59,8.0576]
[1766141013285,0.06105627,124.63,124.59,18.26267616]
[1766141013476,3.2,124.65,124.6,0.83]
[1766141014281,3.2,124.65,124.6,8.057]
[1766141014486,0.05390829,124.64,124.61,0.05897192]
[1766141016186,0.05390829,124.64,124.61,8.12527192]
[1766141016389,3.26,124.67,124.61,8.12527192]
[1766141017390,0.05645398,124.65,124.61,8.12527192]
[1766141026790,0.05645398,124.65,124.62,8.0658]
[1766141036499,0.05645398,124.65,124.62,0.84]
[1766141046504,3.26,124.67,124.63,0.83]
[1766141047510,0.05550812,124.66,124.64,0.06100708]
[1766141049312,10.6023,124.69,124.64,0.84100708]
[1766141050205,0.05755701,124.68,124.64,0.84100708]
[1766141055804,0.05755701,124.68,124.65,0.72]
[1766141066029,3.51755701,124.68,124.64,0.06100708]
[1766141066831,10.74005701,124.68,124.64,0.06100708]
[1766141071332,3.46,124.67,124.64,0.06100708]
[1766141072526,3.46,124.66,124.61,8.22699939]
[1766141073320,0.05353222,124.65,124.62,0.05457686]
[1766141081638,0.05353222,124.65,124.62,0.84457686]
[1766141083643,0.00353222,124.65,124.63,0.79]
[1766141091450,3.33,124.7,124.65,0.74]
[1766141091750,7.221,124.71,124.65,0.74]
[1766141092247,4.65592169,124.72,124.65,0.74]
[1766141092248,4.65592169,124.72,124.66,0.74]
[1766141092445,4.65592169,124.72,124.68,0.05257609]
[1766141092446,0.05665823,124.7,124.68,0.05257609]
[1766141106861,4.65592169,124.72,124.68,0.78257609]
[1766141107065,10.0189776,124.77,124.69,0.68]
[1766141107560,17.2362776,124.77,124.71,0.68]
[1766141108062,0.05371006,124.75,124.73,0.05351421]
[1766141113471,0.00371006,124.75,124.74,0.68]
[1766141120977,0.00371006,124.75,124.73,0.05351421]
[1766141124684,0.00371006,124.75,124.73,0.67351421]
[1766141131788,0.00371006,124.75,124.73,7.89291421]
[1766141140297,0.00371006,124.75,124.73,0.67351421]
[1766141145297,0.00371006,124.75,124.73,7.89301421]
[1766141149994,0.00371006,124.75,124.74,0.62]
[1766141151599,0.00371006,124.75,124.74,8.06900451]
[1766141157502,0.00371006,124.75,124.74,0.62]
[1766141162405,0.00371006,124.75,124.73,7.50251872]
[1766141162809,0.00371006,124.75,124.73,8.12251872]
[1766141168507,3.25,124.8,124.74,0.62]
[1766141169303,3.25,124.8,124.75,0.62]
[1766141169514,0.05467656,124.79,124.76,0.05520497]
[1766141170213,0.05467656,124.79,124.76,0.67520497]
[1766141175324,0.00467656,124.79,124.76,0.67520497]
[1766141178528,0.00467656,124.79,124.76,7.89280497]
[1766141178735,0.00467656,124.79,124.77,0.57]
[1766141194248,0.00467656,124.79,124.77,7.7872]
[1766141198953,0.00467656,124.79,124.78,7.7866]
[1766141199255,9.73398791,124.84,124.78,7.7866]
[1766141199554,9.73398791,124.84,124.79,0.57]
[1766141199949,3.22,124.83,124.79,0.57]
[1766141200256,3.27425551,124.83,124.8,0.05575921]
[1766141202159,0.05425551,124.83,124.8,0.05575921]
[1766141202454,3.27425551,124.83,124.77,0.57]
[1766141203353,3.27425551,124.83,124.79,0.05398782]
[1766141216274,3.27425551,124.83,124.79,0.00398782]
[1766141239391,3.45,124.82,124.77,7.50800586]
[1766141240389,3.45,124.82,124.78,0.05645027]
[1766141240587,10.6645,124.82,124.78,0.05645027]
[1766141240798,3.45,124.81,124.78,0.05645027]
[1766141241498,3.45,124.8,124.74,9.99264434]
[1766141241693,3.45,124.8,124.73,20.64174434]
[1766141242298,3.45,124.78,124.73,9.99264434]
[1766141242499,6.5132867,124.79,124.74,0.00190454]
[1766141242500,3.45,124.76,124.74,0.00190454]
[1766141246008,3.45,124.76,124.71,10.6505]
[1766141246009,3.45,124.76,124.71,6.5132867]
[1766141247109,3.45,124.76,124.72,6.57385016]
[1766141247310,0.06044917,124.75,124.72,6.57385016]
[1766141257912,0.06044917,124.75,124.72,9.79385016]
[1766141258520,3.26,124.78,124.72,9.79385016]
[1766141259519,0.05598092,124.76,124.72,13.4643469]
[1766141261116,3.31598092,124.76,124.72,0.06056346]
[1766141261718,10.4784,124.75,124.72,0.06056346]
[1766141262112,3.26,124.74,124.7,3.22]
[1766141263228,0.05861117,124.73,124.71,0.05988886]
[1766141265820,3.26,124.86,124.72,67.72756688]
[1766141266015,3.26,124.83,124.75,3.22]
[1766141266329,3.26,124.82,124.75,3.22]
[1766141266922,3.26,124.82,124.77,0.00030427]
[1766141266923,3.31539241,124.8,124.77,0.00030427]
[1766141267129,3.31539241,124.8,124.72,47.36]
[1766141267331,3.26,124.8,124.72,10.18378344]
[1766141267533,3.26,124.8,124.72,13.40378344]
[1766141268334,0.06062434,124.77,124.75,0.05656721]
[1766141268536,0.05217406,124.77,124.75,0.05656721]
[1766141270733,3.26,124.87,124.77,3.22]
[1766141270936,3.26,124.87,124.81,10.18378344]
[1766141271133,3.26,124.87,124.79,13.40378344]
[1766141271736,3.26,124.87,124.81,10.18378344]
[1766141272138,0.05659889,124.85,124.83,0.05197077]
[1766141272433,3.26,124.89,124.83,13.45575421]
[1766141272634,3.26,124.89,124.83,13.40378344]
[1766141273236,0.05449072,124.87,124.85,0.05209562]
[1766141273535,3.26,124.89,124.85,0.05209562]
[1766141274425,0.05167296,124.88,124.85,0.05209562]
[1766141276728,3.26,124.89,124.85,10.23587906]
[1766141277634,0.05522775,124.88,124.85,10.23587906]
[1766141277833,3.26,124.89,124.85,0.05209562]
[1766141278842,0.05810528,124.88,124.85,0.05209562]
[1766141279138,3.26,124.89,124.85,0.05209562]
[1766141279937,0.0511294,124.88,124.85,0.05209562]
[1766141280642,3.3111294,124.88,124.81,13.40378344]
[1766141280837,3.3111294,124.88,124.81,3.22]
[1766141281842,3.3111294,124.88,124.83,0.05159563]
[1766141287642,3.29,124.87,124.83,0.05159563]
[1766141289346,3.29,124.87,124.84,7.82142387]
[1766141289546,3.29,124.87,124.83,0.05159563]
[1766141289749,3.29,124.87,124.84,7.82076215]
[1766141289948,3.29,124.87,124.83,0.05159563]
[1766141293349,3.29,124.87,124.81,3.22]
[1766141293350,3.29,124.86,124.81,3.22]
[1766141293555,3.29,124.86,124.79,3.36]
[1766141294252,3.29,124.84,124.77,10.5768]
[1766141294456,3.29,124.84,124.79,0.05843429]
[1766141294457,0.05824916,124.82,124.79,0.05843429]
[1766141296752,0.05824916,124.82,124.79,3.41843429]
[1766141299159,0.05824916,124.82,124.79,0.05843429]
[1766141302059,0.05824916,124.82,124.8,7.73001109]
[1766141302249,0.05824916,124.82,124.81,1.109e-05]
[1766141305463,3.44,124.85,124.81,1.109e-05]
[1766141305662,3.44,124.85,124.79,3.47]
[1766141305863,10.6526,124.85,124.79,3.47]
[1766141306565,0.06041572,124.83,124.81,0.05114269]
[1766141314266,0.06041572,124.83,124.82,7.66946045]
[1766141319370,0.06041572,124.83,124.81,0.05114269]
[1766141323376,7.2119,124.87,124.81,3.44114269]
[1766141323576,57.6819,124.87,124.81,3.44114269]
[1766141324369,0.05905703,124.85,124.81,3.44114269]
[1766141327067,3.30905703,124.85,124.81,0.05114269]
[1766141327778,16.97407477,124.84,124.81,0.05114269]
[1766141329584,10.4633,124.84,124.81,0.05114269]
[1766141329977,16.97407477,124.84,124.81,0.05114269]
[1766141331987,10.4633,124.84,124.81,0.05114269]
[1766141332177,16.97407477,124.84,124.81,0.05114269]
[1766141334584,3.25,124.83,124.81,0.00114269]
[1766141335087,3.25,124.8,124.75,3.39]
[1766141335883,0.05931746,124.79,124.76,0.05748877]
[1766141339885,3.25,124.77,124.71,3.39]
[1766141340886,0.05784366,124.75,124.73,0.05417964]
[1766141341287,9.76077477,124.8,124.74,3.39]
[1766141341496,3.25,124.84,124.76,3.39]
[1766141341695,16.97397477,124.84,124.77,3.39]
[1766141342190,0.05758091,124.82,124.79,0.05809499]
[1766141342593,0.05758091,124.82,124.79,3.44809499]
[1766141344592,0.05758091,124.82,124.79,0.05809499]
[1766141353096,0.05758091,124.82,124.79,3.41809499]
[1766141353299,57.15077477,124.86,124.8,3.36]
[1766141354304,0.0536274,124.84,124.82,0.05262988]
[1766141356300,0.0036274,124.84,124.82,0.05262988]
[1766141362308,3.47,124.89,124.83,3.34]
[1766141362494,9.97946644,124.89,124.83,3.34]
[1766141363306,0.0602608,124.87,124.85,0.05496824]
[1766141365807,3.5302608,124.87,124.79,50.68]
[1766141366005,3.47,124.86,124.79,50.68]
[1766141366711,3.47,124.85,124.79,57.8956]
[1766141366911,0.06128823,124.83,124.81,0.05241049]
[1766141387027,0.06128823,124.83,124.75,3.37]
[1766141387028,3.23,124.81,124.75,3.37]
[1766141387940,0.05223851,124.79,124.77,0.05401847]
[1766141390228,0.05223851,124.79,124.73,3.37]
[1766141390229,3.28223851,124.79,124.73,3.37]
[1766141391237,3.28223851,124.79,124.75,0.05750646]
[1766141391634,10.49843851,124.79,124.75,0.05750646]
[1766141396939,3.28223851,124.79,124.75,0.05750646]
[1766141406336,10.49823851,124.79,124.75,0.05750646]
[1766141406542,3.21,124.78,124.71,3.53]
[1766141407446,0.05268875,124.76,124.73,0.05944685]
[1766141412451,0.05268875,124.76,124.73,3.58944685]
[1766141413448,0.05268875,124.76,124.73,0.05944685]
[1766141415149,3.26268875,124.76,124.69,10.7513]
[1766141415455,3.26268875,124.76,124.69,3.53]
[1766141415657,10.48068875,124.76,124.69,10.7518]
[1766141415844,10.48068875,124.76,124.7,3.53]
[1766141416245,10.48068875,124.76,124.72,0.05990183]
[1766141416948,0.05268875,124.76,124.72,3.41990183]
[1766141417752,3.48268875,124.76,124.72,0.05990183]
[1766141420858,3.43,124.75,124.72,0.05990183]
[1766141421061,0.05268875,124.76,124.72,0.05990183]
[1766141421258,3.48268875,124.76,124.72,0.05990183]
[1766141428170,0.05268875,124.76,124.72,3.41990183]
[1766141429966,0.00268875,124.76,124.72,3.41990183]
[1766141432877,0.00268875,124.76,124.72,10.63990183]
[1766141438477,0.00268875,124.76,124.73,3.34]
[1766141443988,0.00268875,124.76,124.73,10.5594]
[1766141444480,0.00268875,124.76,124.74,3.34]
[1766141460996,0.00268875,124.76,124.72,10.87379143]
[1766141461200,3.22268875,124.76,124.72,0.05990183]
[1766141462496,0.00268875,124.76,124.73,3.34]
[1766141463699,0.00268875,124.76,124.74,3.34]
[1766141465407,9.85809536,124.82,124.75,3.52]
[1766141465901,9.85809536,124.82,124.76,3.52]
[1766141466102,3.34,124.81,124.76,3.52]
[1766141466401,0.05449663,124.8,124.77,0.05848314]
[1766141468002,0.05449663,124.8,124.77,3.57848314]
[1766141482313,0.05449663,124.8,124.77,10.79548314]
[1766141482513,50.58,124.83,124.78,3.29]
[1766141483507,0.05398503,124.82,124.78,3.29]
[1766141485410,0.05398503,124.82,124.78,10.5066]
[1766141485606,0.05398503,124.82,124.79,3.29]
[1766141486910,0.05398503,124.82,124.79,10.5059]
[1766141487507,0.05398503,124.82,124.8,7.2154]
[1766141487712,0.00398503,124.82,124.8,10.55775471]
[1766141489311,3.23,124.85,124.81,3.29]
[1766141489620,3.23,124.86,124.81,3.29]
[1766141490008,3.23,124.86,124.78,14.6899896]
[1766141490212,3.23,124.84,124.79,3.29]
[1766141490413,0.05542942,124.83,124.81,0.06150657]
[1766141513247,0.05542942,124.83,124.75,3.43]
[1766141513248,3.41542942,124.83,124.75,3.43]
[1766141513550,3.36,124.81,124.73,10.90730929]
[1766141513752,3.36,124.79,124.72,10.90730929]
[1766141513948,3.36,124.79,124.72,3.43]
[1766141514148,0.06016753,124.77,124.74,0.05947996]
[1766141514852,0.06016753,124.77,124.74,3.48947996]
[1766141516451,0.00016753,124.77,124.74,3.48947996]
[1766141524449,3.30016753,124.77,124.74,0.05947996]
[1766141525661,10.51746753,124.77,124.74,0.05947996]
[1766141527858,10.51746753,124.77,124.68,47.34]
[1766141527859,10.5179,124.76,124.7,3.53]
[1766141528766,0.05550926,124.74,124.72,0.05597066]
[1766141533476,3.3,124.77,124.72,3.58597066]
[1766141534369,0.05300261,124.76,124.72,3.58597066]
[1766141546177,0.00300261,124.76,124.72,3.58597066]
[1766141546584,0.00300261,124.76,124.73,3.43]
[1766141555380,0.00300261,124.76,124.72,3.54597066]
[1766141561689,10.60080261,124.76,124.72,0.05597066]
[1766141561983,3.38,124.75,124.72,0.05597066]
[1766141565692,7.22080261,124.76,124.72,0.05597066]
[1766141566391,0.00300261,124.76,124.72,3.54597066]
[1766141568198,0.00300261,124.76,124.73,3.49]
[1766141577600,0.00300261,124.76,124.72,0.05597066]
[1766141578103,3.38300261,124.76,124.72,0.05597066]
[1766141580301,10.599,124.74,124.69,7.49922311]
[1766141580497,10.599,124.74,124.68,3.49]
[1766141580697,3.38,124.74,124.68,3.49]
[1766141581400,0.05525371,124.72,124.7,0.05974698]
[1766141586206,3.36,124.78,124.71,3.28]
[1766141586705,3.36,124.78,124.72,3.28]
[1766141587109,0.05607802,124.76,124.74,0.06070294]
[1766141591815,3.41607802,124.76,124.71,3.28]
[1766141592713,3.41607802,124.76,124.72,0.05234793]
[1766141601116,0.05607802,124.76,124.72,3.43234793]
[1766141602719,3.33607802,124.76,124.72,3.43234793]
[1766141602921,3.33607802,124.76,124.72,0.05234793]
[1766141603718,9.85561459,124.76,124.72,0.05234793]
[1766141604521,19.90276501,124.94,124.75,6.51953657]
[1766141604522,3.28,124.84,124.75,6.51953657]
[1766141604711,3.28,124.84,124.76,6.51953657]
[1766141605119,3.28,124.83,124.75,6.51953657]
[1766141605422,3.28,124.83,124.74,159.6541]
[1766141605620,3.28,124.83,124.75,13.73753657]
[1766141605922,0.06142971,124.8,124.78,0.05555153]
[1766141607720,0.00142971,124.8,124.78,0.05555153]
[1766141612828,0.00142971,124.8,124.73,6.51953657]
[1766141612829,3.28142971,124.8,124.73,6.51953657]
[1766141614121,3.28142971,124.8,124.75,0.05715195]
[1766141614918,3.28142971,124.8,124.75,6.57668852]
[1766141615429,3.28142971,124.8,124.75,0.05715195]
[1766141627237,3.28142971,124.8,124.71,7.2202]
[1766141627434,3.25,124.78,124.67,169.87867227]
[1766141628027,3.25,124.78,124.69,10.18677227]
[1766141628236,0.05319492,124.75,124.72,0.05185996]
[1766141628431,0.05406914,124.75,124.72,0.05348061]
[1766141632637,3.30406914,124.75,124.72,0.05348061]
[1766141632837,3.30406914,124.75,124.69,54.5813]
[1766141633141,3.30406914,124.75,124.69,47.36]
[1766141633339,3.30406914,124.75,124.71,7.2206]
[1766141633941,0.05406914,124.75,124.72,0.05786003]
[1766141637448,0.05406914,124.75,124.72,7.27786003]
[1766141641547,3.30406914,124.75,124.72,0.05786003]
[1766141641747,3.30406914,124.75,124.7,7.2208]
[1766141642052,3.30406914,124.75,124.69,47.36]
[1766141642655,3.30406914,124.75,124.71,0.05586516]
[1766141642857,3.25,124.74,124.66,54.583]
[1766141643648,3.25,124.74,124.67,7.2229]
[1766141643845,0.05394676,124.72,124.69,0.05396556]
[1766141650457,0.00394676,124.72,124.69,0.05396556]
[1766141651754,3.44394676,124.72,124.69,0.05396556]
[1766141666466,3.44394676,124.72,124.69,0.00396556]
[1766141670867,4.676e-05,124.72,124.69,7.22566556]
[1766141671770,0.05663907,124.72,124.69,7.22566556]
[1766141676174,0.05663907,124.72,124.69,0.00396556]
[1766141684184,0.05659231,124.72,124.69,0.00396556]
[1766141685586,0.05659231,124.72,124.69,7.22576556]
[1766141685975,3.34,124.74,124.69,7.45812854]
[1766141686171,3.34,124.76,124.69,7.45812854]
[1766141686484,3.34,124.76,124.71,7.2206]
[1766141686984,0.05287705,124.75,124.72,0.05863356]
[1766141688683,3.34,124.78,124.72,0.05863356]
[1766141688982,3.34,124.78,124.71,17.63710626]
[1766141689180,58.85806836,124.83,124.72,112.3129]